fUSD/lending_fUSD_20240127
["ID","MTS","AMOUNT","RATE_DAILY","PERIOD"]
[312849380,1706353846499,-495.07206056,0.00034663,2]
[312849382,1706353846508,-395.59450088,0.00034663,2]
[312849385,1706353846524,-104.40549912,0.00034663,2]
[312849387,1706353846533,-500.0,0.00034663,2]
[312849389,1706353846543,-500.0,0.00034663,2]
[312849391,1706353846552,-500.0,0.00034663,2]
[312849393,1706353846562,-500.0,0.00034663,2]
[312849395,1706353846571,-500.0,0.00034663,2]
[312849397,1706353846580,-500.0,0.00034663,2]
[312849399,1706353846590,-500.0,0.00034663,2]
[312849401,1706353846599,-500.0,0.00034663,2]
[312849403,1706353846609,-500.0,0.00034663,2]
[312849405,1706353846618,-500.0,0.00034663,2]
[312849407,1706353846627,-500.0,0.00034663,2]
[312849409,1706353846636,-500.0,0.00034663,2]
[312849411,1706353846645,-500.0,0.00034663,2]
[312849413,1706353846654,-500.0,0.00034663,2]
[312849415,1706353846663,-500.0,0.00034663,2]
[312849417,1706353846673,-500.0,0.00034663,2]
[312849419,1706353846682,-500.0,0.00034663,2]
[312849421,1706353846691,-457.95454685,0.00034663,2]
[312849424,1706353846703,-42.04545315,0.00034663,2]
[312849425,1706353846712,-500.0,0.00034663,2]
[312849427,1706353846720,-500.0,0.00034663,2]
[312849429,1706353846730,-500.0,0.00034663,2]
[312849431,1706353846738,-95.42626735,0.00034663,2]
[312849432,1706353846749,-404.57373265,0.00034663,2]
[312849433,1706353846758,-197.62994395,0.00034663,2]
[312849434,1706353846768,-302.37005605,0.00034663,2]
[312849435,1706353846777,-426.67898145,0.00034663,2]
[312849436,1706353846788,-73.32101855,0.00034663,2]
[312849440,1706353846797,-472.68498145,0.00034663,2]
[312849514,1706353878809,833.38696774,0.00013908,2]
[312849520,1706354006563,155.33064268,0.00013908,2]
[312849521,1706354034226,260.17747455,0.00013908,2]
[312849522,1706354050223,211.31113981,0.00013908,2]
[312849523,1706354352665,1392.04365844,0.00013491,2]
[312849524,1706354372660,910.18011678,0.00013491,2]
[312849525,1706354372684,17.84898885,0.00013491,2]
[312849526,1706354392671,773.35758802,0.00013086,2]
[312849531,1706354583735,402.91930336,0.00012693,2]
[312849533,1706354601717,402.91930336,0.00012312,2]
[312849536,1706354619720,402.91930336,0.00012312,2]
[312849537,1706354639723,402.91930336,0.00012312,2]
[312849538,1706354657730,402.91930336,0.00011943,2]
[312849539,1706354679730,402.91930336,0.00011943,2]
[312849540,1706354699738,402.91930336,0.00011943,2]
[312849541,1706354719748,402.91930336,0.00011585,2]
[312849542,1706354737743,402.91930336,0.00011585,2]
[312849543,1706354753866,402.91930336,0.00011585,2]
[312849544,1706354773744,402.91930336,0.00011237,2]
[312849545,1706354793750,208.03319119,0.00011237,2]
[312849579,1706355031373,-237.7827,0.000229,2]
[312849580,1706355031383,-206.0,0.00024278,2]
[312849581,1706355031393,-550.0,0.00025,3]
[312849582,1706355031402,-600.0,0.00027,3]
[312849583,1706355031412,-650.0,0.00029,3]
[312849584,1706355031421,-155.0,0.0003,2]
[312849585,1706355031430,-206.0,0.00030232,11]
[312849586,1706355031439,-700.0,0.00031,3]
[312849587,1706355031449,-222.1781407,0.00031193,7]
[312849588,1706355031458,-512.17,0.00031313,2]
[312849589,1706355031468,-844.529,0.00032877,7]
[312849590,1706355031478,-151.94880006,0.00032929,2]
[312849591,1706355031488,-1000.0,0.00033123,2]
[312849592,1706355031498,-153.83,0.00033168,15]
[312849593,1706355031507,-250.0,0.00033179,2]
[312849594,1706355031517,-150.0,0.00033181,2]
[312849595,1706355031527,-753.36,0.0003323,2]
[312849596,1706355031538,-1102.26,0.00033287,2]
[312849597,1706355031551,-11448.0,0.00033295,2]
[312849598,1706355031561,-500.0,0.00033316,2]
[312849599,1706355031571,-462.56,0.00033541,2]
[312849600,1706355031580,-250.0,0.00033541,2]
[312849601,1706355031591,-512.17,0.00033577,2]
[312849602,1706355031601,-150.1,0.00034385,14]
[312849603,1706355031610,-800.0,0.00034385,5]
[312849604,1706355031620,-800.0,0.00034386,5]
[312849605,1706355031629,-150.0,0.00034387,2]
[312849606,1706355031639,-150.0,0.00034391,2]
[312849607,1706355031649,-150.0,0.00034394,2]
[312849608,1706355031659,-150.0,0.00034394,2]
[312849609,1706355031668,-150.0,0.00034399,2]
[312849610,1706355031678,-150.0,0.000344,2]
[312849611,1706355031688,-150.0,0.000344,2]
[312849612,1706355031698,-1500.0,0.00034403,2]
[312849614,1706355031707,-150.0,0.00034406,2]
[312849616,1706355031717,-150.0,0.00034406,2]
[312849618,1706355031727,-150.0,0.00034407,2]
[312849620,1706355031736,-300.0,0.00034408,2]
[312849622,1706355031745,-150.0,0.00034408,2]
[312849624,1706355031755,-150.0,0.00034412,2]
[312849626,1706355031764,-150.0,0.00034414,2]
[312849628,1706355031775,-150.0,0.0003442,2]
[312849630,1706355031786,-150.0,0.0003442,2]
[312849632,1706355031795,-234.63597224,0.00034423,2]
[312849634,1706355031804,-150.0,0.00034429,2]
[312849636,1706355031814,-150.0,0.00034429,2]
[312849638,1706355031823,-150.0,0.00034433,2]
[312849639,1706355031833,-150.0,0.00034437,2]
[312849640,1706355031842,-150.0,0.00034439,2]
[312849641,1706355031851,-150.0,0.00034441,2]
[312849642,1706355031860,-150.0,0.00034441,2]
[312849643,1706355031869,-150.0,0.00034448,2]
[312849644,1706355031878,-150.0,0.00034449,2]
[312849645,1706355031891,-1500.0,0.00034453,2]
[312849646,1706355031900,-150.0,0.00034461,2]
[312849647,1706355031910,-150.0,0.00034472,2]
[312849648,1706355031920,-150.0,0.00034473,2]
[312849649,1706355031929,-150.0,0.00034474,2]
[312849650,1706355031938,-150.0,0.00034477,2]
[312849651,1706355031947,-150.0,0.00034478,2]
[312849652,1706355031957,-150.0,0.0003448,2]
[312849653,1706355031966,-150.0,0.00034481,2]
[312849654,1706355031975,-150.0,0.00034482,2]
[312849655,1706355031984,-150.0,0.00034487,2]
[312849656,1706355031993,-1500.0,0.00034499,2]
[312849657,1706355032003,-150.0,0.000345,2]
[312849658,1706355032013,-150.0,0.00034507,2]
[312849659,1706355032023,-150.0,0.0003451,2]
[312849660,1706355032032,-150.0,0.00034514,2]
[312849661,1706355032042,-150.0,0.00034515,2]
[312849662,1706355032051,-150.0,0.00034516,2]
[312849663,1706355032060,-150.0,0.00034517,2]
[312849664,1706355032069,-150.0,0.00034517,2]
[312849665,1706355032079,-150.0,0.00034523,2]
[312849666,1706355032088,-150.0,0.00034527,2]
[312849667,1706355032097,-150.0,0.00034528,2]
[312849668,1706355032106,-150.0,0.00034544,2]
[312849669,1706355032116,-150.0,0.00034545,2]
[312849670,1706355032125,-150.0,0.00034551,2]
[312849671,1706355032134,-150.0,0.00034555,2]
[312849672,1706355032143,-150.0,0.00034557,2]
[312849673,1706355032152,-929.92404133,0.00034558,2]
[312849674,1706355032162,-150.0,0.00034561,2]
[312849675,1706355032170,-1278.5412,0.00034561,2]
[312849676,1706355032180,-523.8010228,0.00034562,2]
[312849677,1706355032189,-150.0,0.00034565,2]
[312849678,1706355032198,-150.0,0.00034571,2]
[312849679,1706355032208,-150.0,0.00034577,2]
[312849680,1706355032217,-150.0,0.00034579,2]
[312849681,1706355032226,-150.0,0.00034581,2]
[312849682,1706355032236,-150.0,0.00034586,2]
[312849683,1706355032245,-150.0,0.00034587,2]
[312849684,1706355032254,-150.0,0.00034588,2]
[312849685,1706355032263,-299.07562492,0.00034596,2]
[312849686,1706355032273,-150.0,0.00034597,2]
[312849687,1706355032282,-150.0,0.00034601,2]
[312849688,1706355032291,-300.0,0.00034611,2]
[312849689,1706355032301,-150.0,0.00034618,2]
[312849690,1706355032310,-150.0,0.00034622,2]
[312849691,1706355032320,-150.0,0.00034623,2]
[312849692,1706355032331,-150.0,0.00034627,2]
[312849693,1706355032340,-150.0,0.00034632,2]
[312849694,1706355032349,-150.0,0.00034636,2]
[312849695,1706355032358,-408.66631702,0.00034641,2]
[312849696,1706355032368,-408.66631702,0.00034641,2]
[312849697,1706355032377,-150.0,0.00034642,2]
[312849698,1706355032386,-194.82822187,0.00034642,2]
[312849699,1706355032396,-150.0,0.00034642,2]
[312849700,1706355032405,-150.0,0.00034643,2]
[312849701,1706355032415,-150.0,0.00034643,2]
[312849702,1706355032424,-150.0,0.00034645,2]
[312849703,1706355032433,-150.0,0.00034645,2]
[312849704,1706355032443,-150.0,0.00034646,2]
[312849705,1706355032452,-150.0,0.00034648,2]
[312849706,1706355032462,-329.72105171,0.0003465,4]
[312849707,1706355032470,-112104.13322554,0.00034651,6]
[312849708,1706355032483,-393.05108638,0.00034651,6]
[312849709,1706355032495,-383.019,0.00034651,6]
[312849710,1706355032515,-498.73535997,0.00034651,6]
[312849723,1706355037401,-151.94880006,0.00032929,2]
[312849724,1706355037410,-1066.77153618,0.00034562,7]
[312849725,1706355037421,-6689.62664889,0.00034651,6]
[312849726,1706355037434,-1000.0,0.00034651,6]
[312849727,1706355037567,-379.25546197,0.00034651,6]
[312849728,1706355037581,-28858.04186133,0.00034651,6]
[312849791,1706355040226,-2416.29969437,0.00034651,6]
[312849803,1706355042467,-1004.51769359,0.00034651,6]
[312849804,1706355042579,-671.55999999,0.00034651,6]
[312849805,1706355042590,-384.05183585,0.00034651,6]
[312849806,1706355042638,-2315.59034723,0.00034651,6]
[312849813,1706355045787,-713.28000002,0.00034651,6]
[312849814,1706355045808,-784.50318454,0.00034651,6]
[312849815,1706355045830,-11568.40415733,0.00034651,6]
[312849816,1706355045840,-408.66631702,0.00034651,2]
[312849817,1706355045851,-198.38641224,0.00034651,14]
[312849818,1706355045862,-150.0,0.00034654,2]
[312849819,1706355045871,-522.03794951,0.00034658,2]
[312849821,1706355045881,-344.78041424,0.0003466,30]
[312849827,1706355046008,-205.78715541,0.00034661,14]
[312849828,1706355046021,-624.73074176,0.00034661,2]
[312849829,1706355046030,-38723.56003025,0.00034661,2]
[312849830,1706355046047,-253.96394116,0.00034661,2]
[312849846,1706355101590,368.38730643,0.00011237,2]
[312849849,1706355633844,206.0,0.00021598,2]
[312849857,1706355840214,155.75478195,0.00021598,2]
[312849858,1706355952040,-1820.4387805,0.00022799,2]
[312849859,1706355952061,-300.0,0.000228,2]
[312849863,1706356231578,-155.0,0.00024657,2]
[312849865,1706356231588,-151.31,0.00024658,2]
[312849867,1706356231598,-585.52439283,0.00025,2]
[312849868,1706356231608,-151.31,0.00025405,2]
[312849870,1706356231618,-151.31,0.00026152,2]
[312849871,1706356231627,-151.31,0.00026899,2]
[312849872,1706356231636,-1537.1248,0.000276,2]
[312849873,1706356231646,-151.31,0.00027646,2]
[312849874,1706356231655,-150.0,0.00027699,2]
[312849875,1706356231666,-1430.0,0.000277,2]
[312849876,1706356231675,-4004.0,0.000277,2]
[312849877,1706356231685,-206.0,0.00027938,2]
[312849878,1706356231694,-200.67071866,0.00028,2]
[312849879,1706356231703,-151.31,0.00028394,2]
[312849880,1706356231712,-151.31,0.00029141,2]
[312849881,1706356231722,-525.39,0.00029752,2]
[312849882,1706356231731,-163.62442296,0.00029788,2]
[312849883,1706356231741,-151.31,0.00029888,2]
[312849884,1706356231751,-155.0,0.00030468,2]
[312849885,1706356231762,-210.0,0.00030469,2]
[312849886,1706356231771,-151.31,0.00030635,2]
[312849887,1706356231781,-532.325,0.00031017,2]
[312849888,1706356231790,-150.161,0.00031017,2]
[312849889,1706356231801,-180.922,0.00031017,2]
[312849890,1706356231810,-204.233,0.00031017,2]
[312849891,1706356231820,-200.0,0.00031327,2]
[312849892,1706356231830,-250.0,0.00031344,2]
[312849893,1706356231842,-151.31,0.00031382,2]
[312849894,1706356231851,-289.85,0.00031393,2]
[312849895,1706356231861,-218.05,0.00031673,2]
[312849896,1706356231871,-627.8,0.00031887,2]
[312849897,1706356231881,-643.54,0.0003195,2]
[312849898,1706356231891,-250.0,0.00031969,2]
[312849899,1706356231900,-525.39,0.00032016,2]
[312849900,1706356231909,-800.0,0.00032072,2]
[312849901,1706356231919,-151.31,0.0003213,2]
[312849902,1706356231928,-8745.246,0.0003213,2]
[312849903,1706356231937,-152.53,0.00032239,2]
[312849904,1706356231947,-289.85,0.00032555,2]
[312849905,1706356231956,-154.53,0.00032877,15]
[312849906,1706356231966,-151.31,0.00032877,2]
[312849907,1706356231975,-151.94880006,0.00032929,2]
[312849908,1706356231985,-152.53,0.00033079,2]
[312849909,1706356231994,-289.85,0.00033717,2]
[312849910,1706356232004,-152.53,0.00033919,2]
[312849911,1706356232014,-385.46,0.00033948,2]
[312849912,1706356232024,-160.68220905,0.0003428,14]
[312849913,1706356232033,-525.39,0.0003428,2]
[312849914,1706356232043,-254.06736285,0.00034312,4]
[312849915,1706356232053,-1302.01412096,0.00034314,3]
[312849916,1706356232062,-800.0,0.00034385,5]
[312849917,1706356232072,-412.5888739,0.00034559,2]
[312849918,1706356232082,-32444.32307769,0.0003456,2]
[312849919,1706356232098,-3726.39506007,0.0003456,2]
[312849920,1706356232113,-622.67114989,0.0003456,2]
[312849921,1706356232126,-451.63886766,0.0003456,2]
[312849922,1706356232142,-340.1393542,0.0003456,2]
[312849923,1706356232174,-3212.34776258,0.0003456,2]
[312849929,1706356237641,-151.94880006,0.00032929,2]
[312849930,1706356237652,-1761.330171,0.00034387,2]
[312849931,1706356237665,-8090.90022791,0.0003456,2]
[312849932,1706356237675,-34581.93737723,0.00034561,2]
[312849933,1706356237686,-712.73407201,0.00034561,2]
[312849934,1706356237698,-1955.221034,0.00034561,2]
[312849935,1706356237806,-1952.1758324,0.00034561,2]
[312849936,1706356237817,-13185.51840333,0.00034561,2]
[312849937,1706356237829,-358.76648103,0.00034561,2]
[312849938,1706356237838,-869.07560153,0.00034561,2]
[312849939,1706356237849,-916.45510069,0.00034561,2]
[312849940,1706356237861,-2013.15,0.00034561,2]
[312849941,1706356237923,-1173.91719778,0.00034561,2]
[312849942,1706356237932,-523.8010228,0.00034562,2]
[312849943,1706356237941,-26368.35752702,0.00034651,6]
[312850050,1706356240099,-616.7792413,0.00034651,6]
[312850051,1706356240316,-349.75488671,0.00034651,6]
[312850052,1706356240329,-3447.4252532,0.00034651,6]
[312850053,1706356240957,-47582.71512447,0.00034651,6]
[312850054,1706356240967,-1141.18664644,0.00034658,2]
[312850055,1706356240976,-396.67969995,0.0003466,30]
[312850056,1706356240986,-437.31151923,0.0003466,2]
[312850057,1706356240995,-344.86275767,0.00034661,4]
[312850058,1706356241005,-500.0,0.00034661,2]
[312850060,1706356241015,-610.57725012,0.00034661,4]
[312850062,1706356241026,-155.0,0.00034661,4]
[312850063,1706356241035,-479.15326,0.00034661,2]
[312850064,1706356241044,-132480.53791837,0.00034661,2]
[312850065,1706356241056,-82652.80520287,0.00034661,2]
[312850077,1706356242679,-2481.37895923,0.00034661,2]
[312850078,1706356242735,-260.63381433,0.00034661,2]
[312850079,1706356242790,-4708.39372862,0.00034661,2]
[312850080,1706356242802,-629.7394468,0.00034661,2]
[312850081,1706356242846,-1129.52142299,0.00034661,2]
[312850082,1706356242900,-81898.08989023,0.00034661,2]
[312850083,1706356242913,-1650.0,0.00034661,2]
[312850084,1706356245693,-406.55548508,0.00034562,8]
[312850085,1706356245702,-33.58919122,0.0003466,2]
[312850086,1706356245803,-121.41080878,0.0003466,2]
[312850087,1706356245812,-419.58919122,0.00034661,2]
[312850088,1706356245825,-30368.65862832,0.00034661,2]
[312850089,1706356245859,-776.1,0.00034661,2]
[312850090,1706356245871,-1652.23369807,0.00034661,2]
[312850091,1706356245918,-339.05105135,0.00034661,2]
[312850092,1706356246033,-15076.52881484,0.00034661,2]
[312850093,1706356246045,-17745.4858556,0.00034661,2]
[312850110,1706356305905,282.36940041,0.00022769,2]
[312850111,1706356313455,1229.20601844,0.00022768,2]
[312850112,1706356325977,150.0,0.00022,2]
[312850113,1706356327709,150.0,0.00022548,2]
[312850114,1706356438259,1400.98580065,0.0002277,2]
[312850116,1706356643470,176.61,0.00022,2]
[312850119,1706356873067,186.04,0.00022201,10]
[312850120,1706356873251,186.04,0.00023289,10]
[312850121,1706356873457,186.04,0.00024377,10]
[312850122,1706356915253,393.24791162,0.00020315,2]
[312850123,1706356915281,168.64789498,0.00020315,2]
[312850124,1706356915305,47.2441934,0.00020315,2]
[312850125,1706357256906,177.33886258,0.00022,2]
[312850126,1706357265553,229.22,0.00021975,2]
[312850127,1706357338515,578.68,0.00020091,2]
[312850128,1706357340495,202.35008549,0.00021865,2]
[312850129,1706357350879,2965.23,0.00021928,2]
[312850130,1706357359442,250.0,0.00021958,2]
[312850140,1706357431910,-275.07,0.0002203,2]
[312850141,1706357431920,-368.337341,0.00022059,2]
[312850142,1706357431929,-200.0,0.0002217,2]
[312850143,1706357431939,-2000.0,0.00022185,2]
[312850144,1706357431948,-160.0,0.00022188,2]
[312850145,1706357431957,-250.0,0.00022221,2]
[312850146,1706357431966,-578.68,0.00022355,2]
[312850147,1706357431975,-158.47,0.00022414,2]
[312850148,1706357431985,-158.47,0.00022504,2]
[312850149,1706357431994,-206.0,0.00022578,2]
[312850150,1706357432003,-158.47,0.00022594,2]
[312850151,1706357432012,-158.47,0.00022684,2]
[312850152,1706357432022,-300.0,0.00022769,2]
[312850153,1706357432032,-292.96282629,0.0002277,2]
[312850154,1706357432044,-7875.03717371,0.0002277,2]
[312850155,1706357432053,-158.47,0.00022774,2]
[312850156,1706357432062,-158.47,0.00022863,2]
[312850157,1706357432075,-3280.37,0.00022899,2]
[312850158,1706357432085,-152.91141918,0.000229,2]
[312850159,1706357432094,-291.4380874,0.000229,2]
[312850160,1706357432103,-523.8010228,0.000229,2]
[312850161,1706357432113,-181.89138347,0.000229,2]
[312850162,1706357432122,-21.54062388,0.000229,2]
[312850168,1706357432170,-312.37220644,0.000229,2]
[312850171,1706357432185,-367.52434221,0.000229,2]
[312850217,1706357437900,-807.97793039,0.000229,2]
[312850218,1706357437911,-813.11097012,0.000229,2]
[312850219,1706357437922,-499.99,0.00022929,2]
[312850220,1706357437931,-158.47,0.00022953,2]
[312850221,1706357437941,-215.41213944,0.00022976,2]
[312850222,1706357437951,-2863.65,0.00022982,2]
[312850223,1706357437962,-1970.91638222,0.00022998,2]
[312850224,1706357437973,-87394.36456982,0.00022999,2]
[312850225,1706357437982,-3031.20814747,0.00022999,2]
[312850226,1706357437991,-309.999999,0.00022999,2]
[312850227,1706357438000,-1605.59259017,0.00022999,2]
[312850228,1706357438009,-235.25134461,0.00022999,2]
[312850229,1706357438019,-16862.63126378,0.00022999,2]
[312850230,1706357438028,-4638.11355098,0.00022999,2]
[312850231,1706357438037,-244.33054012,0.00022999,2]
[312850232,1706357438046,-491.298365,0.00022999,2]
[312850233,1706357438055,-1500.0,0.00022999,2]
[312850234,1706357438064,-257.15871587,0.00022999,2]
[312850235,1706357438073,-1836.7235073,0.00022999,2]
[312850236,1706357438082,-1307.62522785,0.00022999,2]
[312850237,1706357438094,-559.19763691,0.00022999,2]
[312850238,1706357438103,-37810.66214641,0.00023,2]
[312850239,1706357438114,-5060.50280639,0.00023,2]
[312850240,1706357438125,-3466.66028671,0.00023,2]
[312850242,1706357438136,-1349.97857796,0.00023,2]
[312850244,1706357438148,-399.37201755,0.00023,2]
[312850247,1706357438162,-750.15053776,0.00023,2]
[312850249,1706357438174,-10316.7148963,0.00023,2]
[312850251,1706357438185,-334.41374848,0.00023,2]
[312850253,1706357438196,-808.75030777,0.00023,2]
[312850256,1706357438209,-741.27723955,0.00023,2]
[312850258,1706357438220,-420.8888349,0.00023,2]
[312850262,1706357438248,-1607089.40615822,0.00023,2]
[312850264,1706357438258,-99017.039002,0.00023,2]
[312850266,1706357438267,-158.47,0.00023043,2]
[312850268,1706357438276,-158.47,0.00023133,2]
[312850270,1706357438285,-158.47,0.00023223,2]
[312850272,1706357438294,-158.47,0.00023313,2]
[312850274,1706357438303,-158.47,0.00023402,2]
[312850276,1706357438313,-158.47,0.00023492,2]
[312850278,1706357438322,-2582.06478456,0.000235,2]
[312850280,1706357438331,-158.47,0.00023582,2]
[312850282,1706357438341,-229.22,0.00023619,2]
[312850284,1706357438350,-157.22651786,0.00023716,2]
[312850286,1706357438359,-157.22651786,0.00023808,2]
[312850288,1706357438368,-157.22651786,0.000239,2]
[312850290,1706357438377,-202.09913361,0.00024,2]
[312850292,1706357438386,-840.0,0.00024284,2]
[312850294,1706357438395,-536.28,0.00024384,2]
[312850296,1706357438404,-523.16,0.00024384,2]
[312850298,1706357438413,-578.68,0.00024619,2]
[312850300,1706357438422,-169.45,0.00024658,2]
[312850302,1706357438431,-250.0,0.00024658,2]
[312850304,1706357438441,-181.0,0.00024723,2]
[312850305,1706357438450,-160.0,0.00024962,2]
[312850308,1706357438460,-509.94504749,0.00025,2]
[312850309,1706357438470,-1251.80487607,0.00025,2]
[312850312,1706357438479,-306.50993065,0.00025,2]
[312850314,1706357438489,-550.0,0.00025,3]
[312850316,1706357438498,-169.45,0.0002509,2]
[312850318,1706357438507,-229.22,0.00025262,2]
[312850320,1706357438516,-169.45,0.00025523,2]
[312850322,1706357438525,-169.45,0.00025955,2]
[312850324,1706357438534,-531.71838697,0.00025988,2]
[312850325,1706357438544,-169.45,0.00026388,2]
[312850328,1706357438555,-2582.06478449,0.00026627,2]
[312850330,1706357438564,-152.91141913,0.000267,2]
[312850332,1706357438573,-169.45,0.0002682,2]
[312850334,1706357438582,-791.09,0.00026851,2]
[312850336,1706357438591,-578.68,0.00026883,2]
[312850337,1706357438600,-229.22,0.00026906,2]
[312850340,1706357438609,-600.0,0.00027,3]
[312850341,1706357438620,-169.45,0.00027253,2]
[312850344,1706357438629,-840.0,0.00027319,2]
[312850346,1706357438638,-170.51,0.00027397,2]
[312850348,1706357438647,-164.79,0.000274,2]
[312850350,1706357438656,-164.79,0.000274,2]
[312850352,1706357438665,-164.79,0.000274,2]
[312850354,1706357438674,-164.79,0.000274,2]
[312850356,1706357438683,-164.79,0.000274,2]
[312850358,1706357438692,-164.79,0.000274,2]
[312850359,1706357438702,-523.8010228,0.00027594,2]
[312850362,1706357438711,-201.45,0.00027671,2]
[312850364,1706357438720,-169.45,0.00027686,2]
[312850366,1706357438728,-160.0,0.00027736,2]
[312850368,1706357438738,-5127.0,0.000278,2]
[312850370,1706357438746,-1426.0,0.000279,2]
[312850372,1706357438756,-164.79,0.0002799,2]
[312850374,1706357438767,-88174.08831357,0.00028,2]
[312850376,1706357438779,-99987.3310969,0.00028,2]
[312850378,1706357438790,-1834.83,0.00028,2]
[312850545,1706357440441,-3931.81147886,0.00028,2]
[312850606,1706357441039,-98122.54482998,0.00028,2]
[312850608,1706357441051,-683.22033347,0.00028,2]
[312850613,1706357441094,-1020.20809265,0.00028,2]
[312850616,1706357441105,-1505.18170778,0.00028,2]
[312850621,1706357441150,-1082.02499944,0.00028,2]
[312850744,1706357442829,-3203.24203824,0.00028,2]
[312850745,1706357442839,-170.51,0.0002811,2]
[312850746,1706357442848,-169.45,0.00028118,2]
[312850747,1706357442857,-229.22,0.0002855,2]
[312850748,1706357442866,-169.45,0.00028551,2]
[312850749,1706357442876,-201.45,0.00028695,2]
[312850750,1706357442885,-170.51,0.00028822,2]
[312850751,1706357442894,-166.31,0.00028938,2]
[312850752,1706357442903,-169.45,0.00028983,2]
[312850753,1706357442914,-650.0,0.00029,3]
[312850754,1706357442922,-578.68,0.00029147,2]
[312850755,1706357442931,-169.45,0.00029416,2]
[312850756,1706357442941,-201.45,0.00029719,2]
[312850757,1706357442950,-2582.06478449,0.00029755,2]
[312850758,1706357442959,-169.45,0.00029848,2]
[312850759,1706357442969,-396.39203863,0.0003,2]
[312850760,1706357442978,-155.0,0.0003,2]
[312850761,1706357442987,-229.22,0.00030194,2]
[312850762,1706357442997,-150.875165,0.000302,2]
[312850763,1706357443006,-169.45,0.00030281,2]
[312850764,1706357443015,-840.0,0.00030354,2]
[312850765,1706357443025,-152.91141913,0.000305,2]
[312850766,1706357443034,-160.0,0.00030509,2]
[312850767,1706357443045,-169.45,0.00030714,2]
[312850768,1706357443054,-201.45,0.00030743,2]
[312850769,1706357443066,-275.07,0.00030842,2]
[312850770,1706357443075,-700.0,0.00031,3]
[312850771,1706357443084,-319.0,0.00031017,2]
[312850772,1706357443093,-476.789,0.00031017,2]
[312850773,1706357443102,-210.507,0.00031017,2]
[312850774,1706357443111,-169.45,0.00031146,2]
[312850775,1706357443234,-578.68,0.00031411,2]
[312850776,1706357443244,-169.45,0.00031579,2]
[312850777,1706357443254,-165.08,0.000317,2]
[312850778,1706357443263,-201.45,0.00031767,2]
[312850779,1706357443272,-401.13076496,0.000318,5]
[312850780,1706357443281,-206.0,0.00031934,16]
[312850781,1706357443291,-437.31151923,0.00032,2]
[312850783,1706357443301,-169.45,0.00032011,2]
[312850784,1706357443312,-523.8010228,0.00032288,2]
[312850785,1706357443322,-756.0,0.00032341,5]
[312850786,1706357443331,-1054.85312763,0.000324,2]
[312850787,1706357443340,-1054.85312761,0.000324,2]
[312850788,1706357443349,-1054.85312761,0.000324,2]
[312850789,1706357443359,-1054.85312761,0.000324,2]
[312850790,1706357443368,-1054.85312761,0.000324,2]
[312850791,1706357443378,-1054.85312761,0.000324,2]
[312850792,1706357443387,-1054.85312761,0.000324,2]
[312850793,1706357443396,-1054.85312761,0.000324,2]
[312850794,1706357443405,-1054.85312761,0.000324,2]
[312850795,1706357443414,-1054.85312761,0.000324,2]
[312850796,1706357443423,-1054.85312761,0.000324,2]
[312850797,1706357443431,-1054.85312761,0.000324,2]
[312850798,1706357443441,-1054.85312761,0.000324,2]
[312850799,1706357443450,-169.45,0.00032444,2]
[312850800,1706357443458,-533.23225959,0.0003251,2]
[312850801,1706357443468,-29641.65393903,0.000328,2]